[Event "*** Titled Tuesday Blitz"]
[Site "Chess.com"]
[Date "2021.02.16"]
[Round "3"]
[White "German_Bazeev"]
[Black "awesomevishesh"]
[Result "1-0"]
[WhiteElo "2730"]
[BlackElo "2517"]
[TimeControl "180+1"]
[EndTime "10:32:28 PST"]
[Termination "German_Bazeev won by resignation"]

1. d4 {[%clk 0:02:54.8]} 1... Nf6 {[%clk 0:02:59.3]} 2. Nf3 {[%clk 0:02:54.9]}
2... g6 {[%clk 0:02:59]} 3. c4 {[%clk 0:02:55]} 3... Bg7 {[%clk 0:02:58.9]} 4.
Bg5 {[%clk 0:02:55.4]} 4... d6 {[%clk 0:02:58.1]} 5. e3 {[%clk 0:02:55.6]} 5...
h6 {[%clk 0:02:45.4]} 6. Bh4 {[%clk 0:02:50]} 6... g5 {[%clk 0:02:38.2]} 7. Bg3
{[%clk 0:02:48.6]} 7... Ne4 {[%clk 0:02:38.1]} 8. Nc3 {[%clk 0:02:48.1]} 8...
Nxg3 {[%clk 0:02:36]} 9. hxg3 {[%clk 0:02:47.3]} 9... c5 {[%clk 0:02:33.4]} 10.
dxc5 {[%clk 0:02:43.3]} 10... dxc5 {[%clk 0:02:22.1]} 11. Qxd8+ {[%clk
0:02:12.6]} 11... Kxd8 {[%clk 0:02:21.7]} 12. O-O-O+ {[%clk 0:02:13.5]} 12...
Nd7 {[%clk 0:02:09.8]} 13. Kc2 {[%clk 0:01:32.9]} 13... e6 {[%clk 0:02:08.5]}
14. Nd2 {[%clk 0:01:27]} 14... Ke7 {[%clk 0:02:07.4]} 15. f4 {[%clk 0:01:27.1]}
15... Nf6 {[%clk 0:01:59.7]} 16. Be2 {[%clk 0:01:23.3]} 16... Bd7 {[%clk
0:01:45]} 17. Bf3 {[%clk 0:01:22.7]} 17... Rab8 {[%clk 0:01:34.1]} 18. e4 {[%clk
0:01:05.8]} 18... g4 {[%clk 0:01:09.9]} 19. Be2 {[%clk 0:01:03.3]} 19... h5
{[%clk 0:01:08.3]} 20. e5 {[%clk 0:01:02.6]} 20... Ne8 {[%clk 0:01:07]} 21. Bd3
{[%clk 0:00:54.2]} 21... a6 {[%clk 0:00:43.3]} 22. Nb3 {[%clk 0:00:50.1]} 22...
b6 {[%clk 0:00:42.5]} 23. Be4 {[%clk 0:00:50.4]} 23... f6 {[%clk 0:00:41.6]} 24.
exf6+ {[%clk 0:00:45.1]} 24... Nxf6 {[%clk 0:00:41.5]} 25. Bg6 {[%clk
0:00:32.6]} 25... Bc6 {[%clk 0:00:41]} 26. Rhe1 {[%clk 0:00:31.9]} 26... Bxg2
{[%clk 0:00:37.7]} 27. Bf5 {[%clk 0:00:25.1]} 27... Rbd8 {[%clk 0:00:27.5]} 28.
Bxe6 {[%clk 0:00:22]} 28... Rxd1 {[%clk 0:00:26]} 29. Kxd1 {[%clk 0:00:20.5]}
29... Rd8+ {[%clk 0:00:21.5]} 30. Kc2 {[%clk 0:00:19.9]} 30... Kf8 {[%clk
0:00:17.6]} 31. Na4 {[%clk 0:00:16.9]} 31... Rd6 {[%clk 0:00:09.6]} 32. Bf5
{[%clk 0:00:15.4]} 32... Kf7 {[%clk 0:00:08.7]} 33. Nc3 {[%clk 0:00:13.7]} 33...
Bc6 {[%clk 0:00:05.9]} 34. a4 {[%clk 0:00:13.2]} 34... Bh6 {[%clk 0:00:04.8]}
35. a5 {[%clk 0:00:10.7]} 35... bxa5 {[%clk 0:00:03.4]} 36. Nxc5 {[%clk
0:00:11.2]} 36... h4 {[%clk 0:00:03.6]} 37. gxh4 {[%clk 0:00:12]} 37... Bxf4
{[%clk 0:00:03.7]} 38. Be6+ {[%clk 0:00:12.6]} 38... Kg7 {[%clk 0:00:03.8]} 39.
Nd3 {[%clk 0:00:10.4]} 39... Bh6 {[%clk 0:00:03.6]} 40. Bxg4 {[%clk 0:00:08]}
40... Nxg4 {[%clk 0:00:03.7]} 41. Rg1 {[%clk 0:00:08.7]} 41... Bd7 {[%clk
0:00:03.8]} 42. Ne5 {[%clk 0:00:08.8]} 42... Bf5+ {[%clk 0:00:04.1]} 43. Kb3
{[%clk 0:00:07.6]} 43... Rb6+ {[%clk 0:00:04.2]} 44. Ka2 {[%clk 0:00:07]} 44...
Be3 {[%clk 0:00:04.6]} 45. Rg2 {[%clk 0:00:05.3]} 45... Kh7 {[%clk 0:00:04.5]}
46. Nxg4 {[%clk 0:00:05.3]} 46... Bxg4 {[%clk 0:00:04.7]} 47. Rxg4 {[%clk
0:00:06.2]} 47... Bc1 {[%clk 0:00:04.7]} 48. b3 {[%clk 0:00:04.8]} 48... Bd2
{[%clk 0:00:05]} 49. Na4 {[%clk 0:00:05]} 49... Re6 {[%clk 0:00:04.7]} 50. c5
{[%clk 0:00:04.9]} 50... Bb4 {[%clk 0:00:04.7]} 51. Rc4 {[%clk 0:00:03.3]} 51...
Rc6 {[%clk 0:00:04.9]} 52. Kb1 {[%clk 0:00:03.4]} 52... Kh6 {[%clk 0:00:05.3]}
53. Kc2 {[%clk 0:00:04]} 53... Kh5 {[%clk 0:00:05.8]} 54. Kd3 {[%clk 0:00:04.6]}
54... Kh6 {[%clk 0:00:05.4]} 55. Ke4 {[%clk 0:00:04.9]} 55... Rc8 {[%clk
0:00:05.7]} 56. c6 {[%clk 0:00:04.5]} 56... Kh5 {[%clk 0:00:05.5]} 57. Kd5
{[%clk 0:00:03.8]} 57... Rd8+ {[%clk 0:00:05.8]} 58. Ke6 {[%clk 0:00:04.3]}
58... Re8+ {[%clk 0:00:06.2]} 59. Kd7 {[%clk 0:00:04.6]} 59... Re7+ {[%clk
0:00:06.6]} 60. Kd8 {[%clk 0:00:05.1]} 60... Bd6 {[%clk 0:00:06.8]} 61. c7
{[%clk 0:00:05.1]} 61... Rxc7 {[%clk 0:00:05.2]} 62. Rxc7 {[%clk 0:00:06]} 62...
Bxc7+ {[%clk 0:00:05.5]} 63. Kxc7 {[%clk 0:00:06.9]} 63... Kxh4 {[%clk
0:00:05.6]} 64. Kb6 {[%clk 0:00:07.1]} 64... Kg5 {[%clk 0:00:05.1]} 65. Kxa5
{[%clk 0:00:07.3]} 65... Kf6 {[%clk 0:00:06]} 66. Kxa6 {[%clk 0:00:08.2]} 1-0

[Event "*** Titled Tuesday Blitz"]
[Site "Chess.com"]
[Date "2021.02.16"]
[Round "3"]
[White "tusplingher"]
[Black "azikom"]
[Result "0-1"]
[WhiteElo "2367"]
[BlackElo "2647"]
[TimeControl "180+1"]
[EndTime "10:32:29 PST"]
[Termination "azikom won by resignation"]

1. e4 {[%clk 0:03:00.9]} 1... d5 {[%clk 0:02:58.8]} 2. exd5 {[%clk 0:03:00.2]}
2... Qxd5 {[%clk 0:02:59.3]} 3. Nc3 {[%clk 0:02:59.4]} 3... Qa5 {[%clk
0:02:59.5]} 4. g3 {[%clk 0:02:58.4]} 4... Nf6 {[%clk 0:02:59.2]} 5. Bg2 {[%clk
0:02:57.9]} 5... c6 {[%clk 0:02:59.1]} 6. Nf3 {[%clk 0:02:56.2]} 6... Bg4 {[%clk
0:02:58.3]} 7. h3 {[%clk 0:02:55.6]} 7... Bh5 {[%clk 0:02:58]} 8. O-O {[%clk
0:02:55]} 8... Nbd7 {[%clk 0:02:57.5]} 9. d4 {[%clk 0:02:54.8]} 9... e6 {[%clk
0:02:57.3]} 10. Ne2 {[%clk 0:02:53.5]} 10... Be7 {[%clk 0:02:51.5]} 11. c4
{[%clk 0:02:51.4]} 11... O-O {[%clk 0:02:45.4]} 12. Nf4 {[%clk 0:02:42.7]} 12...
Bg6 {[%clk 0:02:44.7]} 13. Nxg6 {[%clk 0:02:42.3]} 13... hxg6 {[%clk 0:02:44.4]}
14. Be3 {[%clk 0:02:38.6]} 14... Rad8 {[%clk 0:02:41]} 15. Qb3 {[%clk
0:02:32.7]} 15... Qb4 {[%clk 0:02:39.4]} 16. Qxb4 {[%clk 0:02:20.6]} 16... Bxb4
{[%clk 0:02:38.9]} 17. Rfd1 {[%clk 0:02:17.7]} 17... Ba5 {[%clk 0:02:37.2]} 18.
a3 {[%clk 0:01:55.3]} 18... Bb6 {[%clk 0:02:35.8]} 19. b4 {[%clk 0:01:49.7]}
19... Rfe8 {[%clk 0:02:34.5]} 20. Rab1 {[%clk 0:01:45.7]} 20... Ne4 {[%clk
0:02:02]} 21. Rdc1 {[%clk 0:01:14.8]} 21... Nef6 {[%clk 0:01:59.8]} 22. b5
{[%clk 0:01:00]} 22... c5 {[%clk 0:01:59.2]} 23. dxc5 {[%clk 0:00:56.8]} 23...
Bxc5 {[%clk 0:01:57.5]} 24. Bxc5 {[%clk 0:00:51.9]} 24... Nxc5 {[%clk
0:01:57.1]} 25. Rd1 {[%clk 0:00:51.7]} 25... Nfe4 {[%clk 0:01:55.7]} 26. Rxd8
{[%clk 0:00:30.2]} 26... Rxd8 {[%clk 0:01:55.2]} 27. Ne1 {[%clk 0:00:20.5]}
27... Nc3 {[%clk 0:01:53.2]} 28. Ra1 {[%clk 0:00:18.5]} 28... Rd2 {[%clk
0:01:51.8]} 29. Nf3 {[%clk 0:00:17.9]} 29... Rd3 {[%clk 0:01:48.5]} 30. Ne1
{[%clk 0:00:17.6]} 30... Rd4 {[%clk 0:01:48.4]} 31. Nf3 {[%clk 0:00:17.8]} 31...
Rxc4 {[%clk 0:01:45]} 32. Bf1 {[%clk 0:00:18]} 32... Ra4 {[%clk 0:01:40.9]} 33.
Ne5 {[%clk 0:00:16.1]} 33... Re4 {[%clk 0:01:29.9]} 34. Nf3 {[%clk 0:00:15]}
34... b6 {[%clk 0:01:19.2]} 35. Rc1 {[%clk 0:00:14.4]} 35... Nd5 {[%clk
0:01:14.5]} 36. Nd2 {[%clk 0:00:14]} 36... Ra4 {[%clk 0:01:09.7]} 37. Nb1 {[%clk
0:00:13.9]} 37... Kf8 {[%clk 0:01:07.4]} 38. Bg2 {[%clk 0:00:13.9]} 38... Rd4
{[%clk 0:01:04.7]} 39. Bxd5 {[%clk 0:00:11.4]} 39... Rxd5 {[%clk 0:01:04.4]} 40.
Kf1 {[%clk 0:00:11.2]} 40... Ke7 {[%clk 0:01:03.7]} 41. Ke2 {[%clk 0:00:11]}
41... g5 {[%clk 0:01:01.1]} 42. Nc3 {[%clk 0:00:11]} 42... Rd4 {[%clk 0:01:01]}
43. Rd1 {[%clk 0:00:09.4]} 43... Rc4 {[%clk 0:01:00.3]} 44. Nb1 {[%clk 0:00:09]}
44... f5 {[%clk 0:00:59.8]} 45. Rd2 {[%clk 0:00:07.4]} 45... Rc1 {[%clk
0:00:58.3]} 46. Rd1 {[%clk 0:00:06.8]} 46... Rc4 {[%clk 0:00:56.4]} 47. Rd2
{[%clk 0:00:06.5]} 47... g4 {[%clk 0:00:56]} 48. hxg4 {[%clk 0:00:06.3]} 48...
Rxg4 {[%clk 0:00:55.9]} 49. Rd1 {[%clk 0:00:05.7]} 49... Rc4 {[%clk 0:00:55.7]}
50. Rd2 {[%clk 0:00:05.7]} 50... g5 {[%clk 0:00:54.6]} 51. Rd1 {[%clk
0:00:06.2]} 51... Rc2+ {[%clk 0:00:48]} 52. Rd2 {[%clk 0:00:05]} 52... Rc1
{[%clk 0:00:48.2]} 53. Rd1 {[%clk 0:00:04.9]} 53... Rxd1 {[%clk 0:00:48.6]} 54.
Kxd1 {[%clk 0:00:04.8]} 54... Kd6 {[%clk 0:00:49.3]} 55. Ke2 {[%clk 0:00:05.2]}
55... g4 {[%clk 0:00:48.8]} 56. Nc3 {[%clk 0:00:05.2]} 56... Ke5 {[%clk
0:00:47.8]} 57. Ke3 {[%clk 0:00:05.7]} 57... Nb3 {[%clk 0:00:46.6]} 58. Kd3
{[%clk 0:00:05.8]} 58... Na5 {[%clk 0:00:45.8]} 59. Ke3 {[%clk 0:00:05.9]} 59...
Nc4+ {[%clk 0:00:45.5]} 60. Kd3 {[%clk 0:00:06.6]} 60... Nd6 {[%clk 0:00:41.6]}
61. Ke3 {[%clk 0:00:06.8]} 61... Nb7 {[%clk 0:00:37.5]} 62. Kd3 {[%clk
0:00:06.9]} 62... Kd6 {[%clk 0:00:37.6]} 63. Kc4 {[%clk 0:00:07]} 63... Na5+
{[%clk 0:00:36.1]} 64. Kb4 {[%clk 0:00:07.3]} 64... Ke5 {[%clk 0:00:35]} 65. Ne2
{[%clk 0:00:05.7]} 65... Ke4 {[%clk 0:00:34.2]} 66. Nf4 {[%clk 0:00:06]} 66...
e5 {[%clk 0:00:34.4]} 67. Ng6 {[%clk 0:00:06.2]} 67... f4 {[%clk 0:00:34]} 68.
gxf4 {[%clk 0:00:06.2]} 68... exf4 {[%clk 0:00:34.3]} 69. Nh4 {[%clk 0:00:06.5]}
69... g3 {[%clk 0:00:33.7]} 70. fxg3 {[%clk 0:00:06.4]} 70... fxg3 {[%clk
0:00:34]} 71. Kc3 {[%clk 0:00:06.9]} 71... Nb7 {[%clk 0:00:33.2]} 72. Kd2 {[%clk
0:00:07.1]} 72... Nd6 {[%clk 0:00:33.1]} 73. Ke2 {[%clk 0:00:07.5]} 73... Nxb5
{[%clk 0:00:33.1]} 74. Kd2 {[%clk 0:00:08]} 74... Nxa3 {[%clk 0:00:33.2]} 75.
Ng2 {[%clk 0:00:08]} 75... Nc4+ {[%clk 0:00:33.3]} 76. Ke2 {[%clk 0:00:08.3]}
76... a5 {[%clk 0:00:33.7]} 77. Kd1 {[%clk 0:00:07.7]} 77... b5 {[%clk
0:00:33.9]} 78. Kc2 {[%clk 0:00:08]} 78... Ne3+ {[%clk 0:00:33.8]} 79. Nxe3
{[%clk 0:00:08.3]} 79... Kxe3 {[%clk 0:00:34.4]} 0-1

[Event "*** Titled Tuesday Blitz"]
[Site "Chess.com"]
[Date "2021.02.16"]
[Round "3"]
[White "Smirnov_Pavel"]
[Black "sara_khm"]
[Result "1/2-1/2"]
[WhiteElo "2898"]
[BlackElo "2641"]
[TimeControl "180+1"]
[EndTime "10:32:30 PST"]
[Termination "Game drawn - insufficient material"]

1. d4 {[%clk 0:03:00.9]} 1... Nf6 {[%clk 0:02:59.3]} 2. c4 {[%clk 0:03:00.3]}
2... e6 {[%clk 0:02:59.5]} 3. Nf3 {[%clk 0:03:01]} 3... b6 {[%clk 0:02:58.1]} 4.
g3 {[%clk 0:03:00.7]} 4... Bb4+ {[%clk 0:02:56.1]} 5. Bd2 {[%clk 0:03:00.2]}
5... Bxd2+ {[%clk 0:02:55.9]} 6. Qxd2 {[%clk 0:03:01.1]} 6... Ba6 {[%clk
0:02:53.9]} 7. b3 {[%clk 0:03:00.8]} 7... d5 {[%clk 0:02:50.5]} 8. cxd5 {[%clk
0:02:59.3]} 8... exd5 {[%clk 0:02:49.8]} 9. Nc3 {[%clk 0:02:51.4]} 9... O-O
{[%clk 0:02:46.4]} 10. Bg2 {[%clk 0:02:51.3]} 10... Nbd7 {[%clk 0:02:35]} 11.
O-O {[%clk 0:02:46.7]} 11... c6 {[%clk 0:02:34.7]} 12. Ne5 {[%clk 0:02:38.7]}
12... Nxe5 {[%clk 0:02:27.6]} 13. dxe5 {[%clk 0:02:39.6]} 13... Nd7 {[%clk
0:02:20]} 14. f4 {[%clk 0:02:39]} 14... Qe7 {[%clk 0:02:19.7]} 15. Rac1 {[%clk
0:02:29]} 15... f6 {[%clk 0:02:19]} 16. Nxd5 {[%clk 0:02:27.8]} 16... cxd5
{[%clk 0:02:15.6]} 17. Bxd5+ {[%clk 0:02:19.1]} 17... Kh8 {[%clk 0:02:14.6]} 18.
Bxa8 {[%clk 0:02:18.5]} 18... Rxa8 {[%clk 0:02:12.3]} 19. Rc7 {[%clk 0:02:18.3]}
19... Rd8 {[%clk 0:02:04.9]} 20. Rd1 {[%clk 0:02:17.5]} 20... Bc8 {[%clk
0:02:00.5]} 21. Qd6 {[%clk 0:01:42.6]} 21... Qxd6 {[%clk 0:01:52.4]} 22. Rxd6
{[%clk 0:01:43.5]} 22... fxe5 {[%clk 0:01:48.1]} 23. fxe5 {[%clk 0:01:44.3]}
23... Re8 {[%clk 0:01:47.6]} 24. Rdc6 {[%clk 0:01:29.3]} 24... Ba6 {[%clk
0:01:31.7]} 25. Rxd7 {[%clk 0:01:27.1]} 25... Bb5 {[%clk 0:01:32]} 26. Rcc7
{[%clk 0:01:24.6]} 26... Bxd7 {[%clk 0:01:32]} 27. Rxd7 {[%clk 0:01:25.4]} 27...
h5 {[%clk 0:01:23.9]} 28. Rxa7 {[%clk 0:01:24.4]} 28... Rxe5 {[%clk 0:01:24.1]}
29. Kf2 {[%clk 0:01:24.9]} 29... Rf5+ {[%clk 0:01:19.7]} 30. Ke3 {[%clk
0:01:24.8]} 30... Re5+ {[%clk 0:01:20.1]} 31. Kd3 {[%clk 0:01:20.7]} 31... Rd5+
{[%clk 0:01:20.3]} 32. Kc3 {[%clk 0:01:19.1]} 32... Re5 {[%clk 0:01:18.4]} 33.
Kd2 {[%clk 0:01:14.1]} 33... Rd5+ {[%clk 0:01:15.5]} 34. Ke1 {[%clk 0:01:14.1]}
34... Kh7 {[%clk 0:01:14.7]} 35. Ra6 {[%clk 0:01:13.3]} 35... Rb5 {[%clk
0:01:06.5]} 36. Kd2 {[%clk 0:01:10.8]} 36... Rd5+ {[%clk 0:01:06.1]} 37. Ke1
{[%clk 0:01:04.7]} 37... Rb5 {[%clk 0:01:05.9]} 38. Ra4 {[%clk 0:01:04.8]} 38...
g5 {[%clk 0:00:58.9]} 39. Rc4 {[%clk 0:01:03.8]} 39... Kg6 {[%clk 0:00:57.8]}
40. e4 {[%clk 0:01:01.2]} 40... Kf6 {[%clk 0:00:55.5]} 41. Kd2 {[%clk
0:01:01.2]} 41... Ke5 {[%clk 0:00:48.4]} 42. Kc3 {[%clk 0:01:00.8]} 42... Ra5
{[%clk 0:00:47.6]} 43. a4 {[%clk 0:00:57.1]} 43... h4 {[%clk 0:00:44.3]} 44.
gxh4 {[%clk 0:00:54.3]} 44... gxh4 {[%clk 0:00:44.6]} 45. Rc6 {[%clk 0:00:54.7]}
45... Kf4 {[%clk 0:00:37.1]} 46. Rxb6 {[%clk 0:00:51.5]} 46... Rc5+ {[%clk
0:00:34.6]} 47. Kd3 {[%clk 0:00:49.3]} 47... Rc1 {[%clk 0:00:34.6]} 48. Rf6+
{[%clk 0:00:48.5]} 48... Kg4 {[%clk 0:00:32.8]} 49. e5 {[%clk 0:00:48.1]} 49...
Rb1 {[%clk 0:00:29.8]} 50. Kc4 {[%clk 0:00:45.8]} 50... Rb2 {[%clk 0:00:29.1]}
51. h3+ {[%clk 0:00:22.9]} 51... Kxh3 {[%clk 0:00:28.5]} 52. Rf3+ {[%clk
0:00:22.8]} 52... Kg4 {[%clk 0:00:27]} 53. Re3 {[%clk 0:00:22.7]} 53... h3
{[%clk 0:00:26.1]} 54. e6 {[%clk 0:00:22.2]} 54... h2 {[%clk 0:00:26.4]} 55. Re1
{[%clk 0:00:20]} 55... Re2 {[%clk 0:00:26.5]} 56. Rh1 {[%clk 0:00:17.9]} 56...
Kg3 {[%clk 0:00:26.9]} 57. Kd5 {[%clk 0:00:16.9]} 57... Rd2+ {[%clk 0:00:26.1]}
58. Kc6 {[%clk 0:00:16.1]} 58... Rc2+ {[%clk 0:00:25]} 59. Kd7 {[%clk
0:00:16.1]} 59... Rd2+ {[%clk 0:00:25.3]} 60. Ke8 {[%clk 0:00:14.9]} 60... Rb2
{[%clk 0:00:24.8]} 61. e7 {[%clk 0:00:13.7]} 61... Rxb3 {[%clk 0:00:25.2]} 62.
a5 {[%clk 0:00:13.6]} 62... Ra3 {[%clk 0:00:24.2]} 63. Kf7 {[%clk 0:00:12.6]}
63... Rf3+ {[%clk 0:00:23.5]} 64. Ke6 {[%clk 0:00:12.8]} 64... Re3+ {[%clk
0:00:23.6]} 65. Kd6 {[%clk 0:00:13.1]} 65... Rd3+ {[%clk 0:00:24]} 66. Kc7
{[%clk 0:00:13.1]} 66... Rc3+ {[%clk 0:00:22.5]} 67. Kd7 {[%clk 0:00:13.2]}
67... Rd3+ {[%clk 0:00:22.7]} 68. Ke6 {[%clk 0:00:13]} 68... Re3+ {[%clk
0:00:22.9]} 69. Kf7 {[%clk 0:00:12.7]} 69... Rf3+ {[%clk 0:00:23.1]} 70. Kg7
{[%clk 0:00:13]} 70... Re3 {[%clk 0:00:23.6]} 71. Kf8 {[%clk 0:00:13.3]} 71...
Rf3+ {[%clk 0:00:23.6]} 72. Ke8 {[%clk 0:00:13.5]} 72... Ra3 {[%clk 0:00:24]}
73. Kd8 {[%clk 0:00:13.2]} 73... Rd3+ {[%clk 0:00:24.1]} 74. Kc8 {[%clk
0:00:13]} 74... Rc3+ {[%clk 0:00:24.2]} 75. Kb8 {[%clk 0:00:12.4]} 75... Re3
{[%clk 0:00:23.1]} 76. a6 {[%clk 0:00:10.9]} 76... Rxe7 {[%clk 0:00:23.1]} 77.
a7 {[%clk 0:00:11.3]} 77... Re8+ {[%clk 0:00:23.6]} 78. Kb7 {[%clk 0:00:11.2]}
78... Re7+ {[%clk 0:00:24]} 79. Kb8 {[%clk 0:00:11.5]} 79... Rxa7 {[%clk
0:00:24.1]} 80. Kxa7 {[%clk 0:00:11.5]} 80... Kg2 {[%clk 0:00:24.7]} 81. Rxh2+
{[%clk 0:00:12.1]} 81... Kxh2 {[%clk 0:00:24.9]} 1/2-1/2

[Event "*** Titled Tuesday Blitz"]
[Site "Chess.com"]
[Date "2021.02.16"]
[Round "3"]
[White "korbul"]
[Black "queen_iryna"]
[Result "1-0"]
[WhiteElo "2603"]
[BlackElo "2395"]
[TimeControl "180+1"]
[EndTime "10:32:45 PST"]
[Termination "korbul won by resignation"]

1. d4 {[%clk 0:03:00.9]} 1... d6 {[%clk 0:03:00]} 2. e4 {[%clk 0:03:00.3]} 2...
Nf6 {[%clk 0:02:57.6]} 3. Nc3 {[%clk 0:03:00.2]} 3... e5 {[%clk 0:02:56.9]} 4.
Nf3 {[%clk 0:03:00]} 4... Nbd7 {[%clk 0:02:56.4]} 5. g3 {[%clk 0:02:59.5]} 5...
Be7 {[%clk 0:02:38.2]} 6. Bg2 {[%clk 0:02:59.2]} 6... O-O {[%clk 0:02:38.3]} 7.
O-O {[%clk 0:02:58.9]} 7... c6 {[%clk 0:02:38.4]} 8. a4 {[%clk 0:02:58.1]} 8...
h6 {[%clk 0:02:38.5]} 9. h3 {[%clk 0:02:57.6]} 9... Re8 {[%clk 0:02:38.7]} 10.
Re1 {[%clk 0:02:57.2]} 10... Bf8 {[%clk 0:02:38.6]} 11. b3 {[%clk 0:02:52.5]}
11... Qc7 {[%clk 0:02:38.4]} 12. Bb2 {[%clk 0:02:52.1]} 12... b6 {[%clk
0:02:37.9]} 13. d5 {[%clk 0:02:31.3]} 13... Bb7 {[%clk 0:02:36.2]} 14. dxc6
{[%clk 0:02:27]} 14... Bxc6 {[%clk 0:02:37.1]} 15. Nd2 {[%clk 0:02:26.8]} 15...
Rac8 {[%clk 0:02:30.8]} 16. Nc4 {[%clk 0:02:24.6]} 16... Nc5 {[%clk 0:02:19.4]}
17. Nb5 {[%clk 0:02:16]} 17... Qb8 {[%clk 0:01:54.5]} 18. Nc3 {[%clk 0:01:52.1]}
18... a6 {[%clk 0:01:47.9]} 19. a5 {[%clk 0:01:47.2]} 19... b5 {[%clk
0:01:44.6]} 20. Nb6 {[%clk 0:01:47.1]} 20... Rcd8 {[%clk 0:01:42.5]} 21. Ncd5
{[%clk 0:01:38.3]} 21... Nxd5 {[%clk 0:01:12.2]} 22. Nxd5 {[%clk 0:01:26.2]}
22... Qb7 {[%clk 0:00:55.3]} 23. b4 {[%clk 0:00:56.3]} 23... Bxd5 {[%clk
0:00:50.3]} 24. exd5 {[%clk 0:00:44.1]} 24... Nd7 {[%clk 0:00:48.9]} 25. Qd3
{[%clk 0:00:33.5]} 25... Qc8 {[%clk 0:00:42.5]} 26. Rac1 {[%clk 0:00:24.9]}
26... g6 {[%clk 0:00:38]} 27. c4 {[%clk 0:00:24.3]} 27... bxc4 {[%clk
0:00:38.1]} 28. Qxc4 {[%clk 0:00:24.5]} 28... Qb7 {[%clk 0:00:29.5]} 29. Qc6
{[%clk 0:00:12.3]} 29... Qxb4 {[%clk 0:00:28.2]} 30. Bc3 {[%clk 0:00:12.1]}
30... Qb5 {[%clk 0:00:23.8]} 31. Bf1 {[%clk 0:00:08.8]} 31... Qxc6 {[%clk
0:00:22.3]} 32. dxc6 {[%clk 0:00:09.7]} 32... Nc5 {[%clk 0:00:22.7]} 33. Bb4
{[%clk 0:00:08.4]} 33... Rc8 {[%clk 0:00:21.8]} 34. Bxc5 {[%clk 0:00:08.4]}
34... dxc5 {[%clk 0:00:22.4]} 35. Bg2 {[%clk 0:00:08.2]} 35... f5 {[%clk
0:00:20.6]} 36. Rb1 {[%clk 0:00:07.6]} 36... e4 {[%clk 0:00:19.8]} 37. Rb6
{[%clk 0:00:07.6]} 37... Ra8 {[%clk 0:00:17.7]} 38. f3 {[%clk 0:00:07.6]} 38...
c4 {[%clk 0:00:17.6]} 39. Kh2 {[%clk 0:00:07.5]} 39... c3 {[%clk 0:00:16.7]} 40.
Rc1 {[%clk 0:00:07.1]} 40... Bg7 {[%clk 0:00:16]} 41. fxe4 {[%clk 0:00:07.1]}
41... fxe4 {[%clk 0:00:16.9]} 42. c7 {[%clk 0:00:07.3]} 42... Rac8 {[%clk
0:00:13.5]} 43. Rc6 {[%clk 0:00:06.6]} 43... e3 {[%clk 0:00:11.7]} 44. Bd5+
{[%clk 0:00:06.2]} 44... Kh8 {[%clk 0:00:11.1]} 45. Re1 {[%clk 0:00:05.5]} 45...
e2 {[%clk 0:00:10.2]} 46. Be6 {[%clk 0:00:05.4]} 46... Kh7 {[%clk 0:00:06.8]}
47. Bxc8 {[%clk 0:00:04.5]} 47... Rxc8 {[%clk 0:00:07.7]} 48. Rxe2 {[%clk
0:00:04.7]} 48... h5 {[%clk 0:00:07.8]} 49. Re7 {[%clk 0:00:04.4]} 49... Kh6
{[%clk 0:00:07.9]} 50. Ree6 {[%clk 0:00:04.4]} 50... Kh7 {[%clk 0:00:07.6]} 51.
Rxg6 {[%clk 0:00:04.3]} 51... c2 {[%clk 0:00:08.1]} 52. Rge6 {[%clk 0:00:04]}
52... c1=Q {[%clk 0:00:04.2]} 53. Rxc1 {[%clk 0:00:03.7]} 53... Bd4 {[%clk
0:00:03.3]} 54. Re7+ {[%clk 0:00:03.7]} 54... Kg6 {[%clk 0:00:03.3]} 55. Rc6+
{[%clk 0:00:04.6]} 55... Kf5 {[%clk 0:00:03.6]} 56. Rd7 {[%clk 0:00:05]} 56...
Be5 {[%clk 0:00:03.3]} 57. Rf7+ {[%clk 0:00:04.3]} 57... Ke4 {[%clk 0:00:02.3]}
58. Rh7 {[%clk 0:00:05]} 58... h4 {[%clk 0:00:02.3]} 59. Rh5 {[%clk 0:00:04.5]}
59... Kd5 {[%clk 0:00:03.2]} 60. Rxa6 {[%clk 0:00:04]} 60... hxg3+ {[%clk
0:00:03.5]} 61. Kg2 {[%clk 0:00:04.1]} 61... Rxc7 {[%clk 0:00:04.4]} 62. Rb6
{[%clk 0:00:04]} 62... Rc2+ {[%clk 0:00:04.4]} 63. Kf3 {[%clk 0:00:04.9]} 63...
g2 {[%clk 0:00:04.6]} 64. Rg5 {[%clk 0:00:05.1]} 64... Kc5 {[%clk 0:00:04]} 65.
Re6 {[%clk 0:00:04.6]} 65... Kd4 {[%clk 0:00:03.3]} 66. Rexe5 {[%clk 0:00:04.4]}
66... g1=Q {[%clk 0:00:03.4]} 67. Rxg1 {[%clk 0:00:04.9]} 67... Kxe5 {[%clk
0:00:04.3]} 68. Rg5+ {[%clk 0:00:04.8]} 68... Kf6 {[%clk 0:00:04]} 69. Rb5
{[%clk 0:00:05.7]} 69... Ra2 {[%clk 0:00:03.6]} 70. Kg4 {[%clk 0:00:06.6]} 70...
Kg6 {[%clk 0:00:03.8]} 71. h4 {[%clk 0:00:06.7]} 71... Ra4+ {[%clk 0:00:03.3]}
72. Kg3 {[%clk 0:00:07.6]} 72... Kh6 {[%clk 0:00:03.6]} 73. h5 {[%clk
0:00:07.4]} 73... Ra3+ {[%clk 0:00:02.9]} 74. Kf4 {[%clk 0:00:07.1]} 74... Ra4+
{[%clk 0:00:03.3]} 75. Ke5 {[%clk 0:00:07.2]} 75... Kxh5 {[%clk 0:00:03.6]} 76.
Kd6+ {[%clk 0:00:07.8]} 76... Kg6 {[%clk 0:00:04]} 77. Kc6 {[%clk 0:00:08.3]}
77... Kf6 {[%clk 0:00:04.5]} 78. Kb7 {[%clk 0:00:08.8]} 78... Ke6 {[%clk
0:00:05.4]} 79. a6 {[%clk 0:00:09.3]} 79... Kd7 {[%clk 0:00:05.7]} 80. a7 {[%clk
0:00:09.8]} 80... Rxa7+ {[%clk 0:00:04.9]} 81. Kxa7 {[%clk 0:00:09.6]} 1-0